[Event "Titled Tuesday Blitz August 22 Late 2023"]
[White "OPQRC"]
[Black "whiteglovethief"]
[WhiteElo "2635"]
[BlackElo "2368"]
[Result "0-1"]
[Round "4"]
[TimeControl "180+1"]
[Date "2023.08.22"]
[WhiteClock "0:00:28"]
[BlackClock "0:00:21"]
[Board "95"]

1. e4 {[%clk 0:03:00]}  e6 {[%clk 0:02:59]} 2. d3 {[%clk 0:02:56]}  Nc6 {[%clk 0:02:58]} 3. Nf3 {[%clk 0:02:56]}  d5 {[%clk 0:02:58]} 4. Nbd2 {[%clk 0:02:55]}  e5 {[%clk 0:02:57]} 5. g3 {[%clk 0:02:53]}  Nf6 {[%clk 0:02:57]} 6. Bg2 {[%clk 0:02:53]}  Bc5 {[%clk 0:02:57]} 7. O-O {[%clk 0:02:53]}  dxe4 {[%clk 0:02:57]} 8. Nxe4 {[%clk 0:02:52]}  Nxe4 {[%clk 0:02:56]} 9. dxe4 {[%clk 0:02:53]}  Qxd1 {[%clk 0:02:56]} 10. Rxd1 {[%clk 0:02:53]}  Bg4 {[%clk 0:02:55]} 11. c3 {[%clk 0:02:53]}  a5 {[%clk 0:02:45]} 12. h3 {[%clk 0:02:51]}  Bxf3 {[%clk 0:02:44]} 13. Bxf3 {[%clk 0:02:52]}  Ke7 {[%clk 0:02:42]} 14. b3 {[%clk 0:02:51]}  Rhd8 {[%clk 0:02:36]} 15. Kf1 {[%clk 0:02:42]}  f6 {[%clk 0:02:34]} 16. Rxd8 {[%clk 0:02:24]}  Rxd8 {[%clk 0:02:32]} 17. a3 {[%clk 0:02:24]}  Rd3 {[%clk 0:02:31]} 18. Be2 {[%clk 0:02:15]}  Rxc3 {[%clk 0:02:31]} 19. Rb1 {[%clk 0:02:12]}  Rc2 {[%clk 0:02:26]} 20. b4 {[%clk 0:02:06]}  axb4 {[%clk 0:02:24]} 21. axb4 {[%clk 0:02:07]}  Nxb4 {[%clk 0:02:18]} 22. Ba3 {[%clk 0:02:04]}  Na6 {[%clk 0:02:05]} 23. Rxb7 {[%clk 0:01:56]}  Bxa3 {[%clk 0:02:01]} 24. Bxa6 {[%clk 0:01:56]}  Kd6 {[%clk 0:01:55]} 25. Be2 {[%clk 0:01:48]}  Rb2 {[%clk 0:01:45]} 26. Ra7 {[%clk 0:01:45]}  Bc5 {[%clk 0:01:44]} 27. Ra6+ {[%clk 0:01:43]}  Bb6 {[%clk 0:01:42]} 28. f4 {[%clk 0:01:40]}  Kc5 {[%clk 0:01:35]} 29. f5 {[%clk 0:01:38]}  Kd4 {[%clk 0:01:34]} 30. Ra4+ {[%clk 0:01:36]}  Ke3 {[%clk 0:01:32]} 31. Ra3+ {[%clk 0:01:36]}  Kxe4 {[%clk 0:01:32]} 32. Bd3+ {[%clk 0:01:35]}  Kd4 {[%clk 0:01:31]} 33. Be2 {[%clk 0:01:34]}  Bc5 {[%clk 0:00:53]} 34. Rd3+ {[%clk 0:01:28]}  Ke4 {[%clk 0:00:52]} 35. g4 {[%clk 0:01:29]}  Bd4 {[%clk 0:00:43]} 36. h4 {[%clk 0:01:17]}  c5 {[%clk 0:00:41]} 37. Rd1 {[%clk 0:01:16]}  Kf4 {[%clk 0:00:35]} 38. h5 {[%clk 0:01:01]}  e4 {[%clk 0:00:30]} 39. Rc1 {[%clk 0:00:58]}  Kg3 {[%clk 0:00:26]} 40. Rd1 {[%clk 0:00:52]}  h6 {[%clk 0:00:25]} 41. Rc1 {[%clk 0:00:52]}  Kf4 {[%clk 0:00:25]} 42. Rd1 {[%clk 0:00:52]}  Ke3 {[%clk 0:00:25]} 43. Bc4 {[%clk 0:00:40]}  Kf3 {[%clk 0:00:24]} 44. Rc1 {[%clk 0:00:28]}  Rh2 {[%clk 0:00:21]} 0-1


[Site "https://www.chess.com"]

[Event "Titled Tuesday Blitz August 22 Late 2023"]
[White "Omelja, Artem"]
[Black "Filip, Andrei"]
[WhiteFideId "14119846"]
[BlackFideId "1249452"]
[WhiteElo "2624"]
[BlackElo "2349"]
[Result "1-0"]
[Round "4"]
[TimeControl "180+1"]
[Date "2023.08.22"]
[WhiteClock "0:00:04"]
[BlackClock "0:00:03"]
[Board "96"]

1. d4 {[%clk 0:03:00]}  Nf6 {[%clk 0:02:56]} 2. c4 {[%clk 0:02:58]}  e6 {[%clk 0:02:54]} 3. Nf3 {[%clk 0:02:53]}  c5 {[%clk 0:02:52]} 4. d5 {[%clk 0:02:51]}  b5 {[%clk 0:02:53]} 5. dxe6 {[%clk 0:02:29]}  fxe6 {[%clk 0:02:52]} 6. cxb5 {[%clk 0:02:30]}  d5 {[%clk 0:02:51]} 7. e3 {[%clk 0:02:22]}  Nbd7 {[%clk 0:02:45]} 8. Be2 {[%clk 0:02:20]}  Bd6 {[%clk 0:02:44]} 9. O-O {[%clk 0:02:18]}  Bb7 {[%clk 0:02:41]} 10. b3 {[%clk 0:02:15]}  e5 {[%clk 0:02:35]} 11. Bb2 {[%clk 0:01:53]}  Qe7 {[%clk 0:02:24]} 12. Nbd2 {[%clk 0:01:30]}  e4 {[%clk 0:02:20]} 13. Nh4 {[%clk 0:01:26]}  Qe6 {[%clk 0:02:05]} 14. h3 {[%clk 0:01:22]}  O-O {[%clk 0:02:03]} 15. Bg4 {[%clk 0:01:04]}  Nxg4 {[%clk 0:02:01]} 16. Qxg4 {[%clk 0:01:04]}  Qxg4 {[%clk 0:01:50]} 17. hxg4 {[%clk 0:01:05]}  Ne5 {[%clk 0:01:51]} 18. Nf5 {[%clk 0:00:58]}  Bc7 {[%clk 0:01:45]} 19. f3 {[%clk 0:00:48]}  Nd3 {[%clk 0:01:30]} 20. Bc3 {[%clk 0:00:35]}  Be5 {[%clk 0:01:20]} 21. Bxe5 {[%clk 0:00:23]}  Nxe5 {[%clk 0:01:21]} 22. Nd6 {[%clk 0:00:21]}  Rab8 {[%clk 0:01:17]} 23. fxe4 {[%clk 0:00:17]}  dxe4 {[%clk 0:01:13]} 24. N2xe4 {[%clk 0:00:14]}  Bxe4 {[%clk 0:01:02]} 25. Nxe4 {[%clk 0:00:13]}  Nxg4 {[%clk 0:01:03]} 26. Rxf8+ {[%clk 0:00:13]}  Rxf8 {[%clk 0:01:03]} 27. Nxc5 {[%clk 0:00:10]}  Nxe3 {[%clk 0:01:02]} 28. a4 {[%clk 0:00:08]}  Rc8 {[%clk 0:00:57]} 29. Rc1 {[%clk 0:00:06]}  Rd8 {[%clk 0:00:52]} 30. Ne4 {[%clk 0:00:04]}  Rd4 {[%clk 0:00:51]} 31. Rc8+ {[%clk 0:00:02]}  Kf7 {[%clk 0:00:50]} 32. Ng5+ {[%clk 0:00:03]}  Kg6 {[%clk 0:00:47]} 33. Nf3 {[%clk 0:00:04]}  Rd1+ {[%clk 0:00:37]} 34. Kf2 {[%clk 0:00:04]}  Ng4+ {[%clk 0:00:37]} 35. Kg3 {[%clk 0:00:04]}  Nf6 {[%clk 0:00:35]} 36. Rc7 {[%clk 0:00:03]}  Rb1 {[%clk 0:00:28]} 37. Rxa7 {[%clk 0:00:03]}  Rxb3 {[%clk 0:00:29]} 38. Ra6 {[%clk 0:00:01]}  Kf5 {[%clk 0:00:29]} 39. Kh3 {[%clk 0:00:01]}  Nd5 {[%clk 0:00:23]} 40. Kg3 {[%clk 0:00:01]}  g5 {[%clk 0:00:22]} 41. Rd6 {[%clk 0:00:01]}  Nc3 {[%clk 0:00:18]} 42. Rd8 {[%clk 0:00:02]}  Ne4+ {[%clk 0:00:18]} 43. Kh2 {[%clk 0:00:02]}  Ra3 {[%clk 0:00:18]} 44. Nd4+ {[%clk 0:00:03]}  Kf4 {[%clk 0:00:17]} 45. Re8 {[%clk 0:00:03]}  Rxa4 {[%clk 0:00:16]} 46. Ne2+ {[%clk 0:00:03]}  Kf5 {[%clk 0:00:10]} 47. b6 {[%clk 0:00:04]}  Rb4 {[%clk 0:00:10]} 48. Rb8 {[%clk 0:00:04]}  Nd6 {[%clk 0:00:03]} 49. Nc3 {[%clk 0:00:03]}  Nc4 {[%clk 0:00:03]} 50. Nd5 {[%clk 0:00:03]}  Ke5 {[%clk 0:00:02]} 51. Nxb4 {[%clk 0:00:03]}  Nxb6 {[%clk 0:00:03]} 52. Rxb6 {[%clk 0:00:03]}  h5 {[%clk 0:00:01]} 53. Rh6 {[%clk 0:00:03]}  Kf5 {[%clk 0:00:02]} 54. Rxh5 {[%clk 0:00:03]}  Kg4 {[%clk 0:00:03]} 55. Rh8 {[%clk 0:00:04]}  Kf4 {[%clk 0:00:04]} 56. Nc2 {[%clk 0:00:04]}  Kg4 {[%clk 0:00:03]} 57. Ne3+ {[%clk 0:00:04]} 1-0


[Site "https://www.chess.com"]

[Event "Titled Tuesday Blitz August 22 Late 2023"]
[White "Sala, Giulia"]
[Black "Vlassov, Nikolai"]
[WhiteFideId "2840451"]
[BlackFideId "4103360"]
[WhiteElo "2322"]
[BlackElo "2619"]
[Result "1/2-1/2"]
[Round "4"]
[TimeControl "180+1"]
[Date "2023.08.22"]
[WhiteClock "0:00:09"]
[BlackClock "0:00:17"]
[Board "97"]

1. d4 {[%clk 0:03:00]}  Nf6 {[%clk 0:02:57]} 2. c4 {[%clk 0:03:01]}  Nc6 {[%clk 0:02:57]} 3. Nf3 {[%clk 0:02:51]}  e6 {[%clk 0:02:57]} 4. Nc3 {[%clk 0:02:46]}  Bb4 {[%clk 0:02:57]} 5. Bd2 {[%clk 0:02:42]}  O-O {[%clk 0:02:56]} 6. e3 {[%clk 0:02:38]}  d6 {[%clk 0:02:50]} 7. a3 {[%clk 0:02:34]}  Bxc3 {[%clk 0:02:50]} 8. Bxc3 {[%clk 0:02:22]}  Ne4 {[%clk 0:02:50]} 9. Qc2 {[%clk 0:02:15]}  f5 {[%clk 0:02:46]} 10. Bd3 {[%clk 0:02:15]}  Nxc3 {[%clk 0:02:46]} 11. Qxc3 {[%clk 0:02:15]}  Qf6 {[%clk 0:02:46]} 12. b4 {[%clk 0:02:05]}  e5 {[%clk 0:02:46]} 13. Be2 {[%clk 0:02:00]}  e4 {[%clk 0:02:20]} 14. Nd2 {[%clk 0:01:51]}  Bd7 {[%clk 0:02:20]} 15. g3 {[%clk 0:01:48]}  Rae8 {[%clk 0:02:09]} 16. h4 {[%clk 0:01:42]}  g6 {[%clk 0:02:07]} 17. O-O-O {[%clk 0:01:32]}  Ne7 {[%clk 0:01:59]} 18. Kb2 {[%clk 0:01:29]}  c5 {[%clk 0:01:51]} 19. dxc5 {[%clk 0:01:05]}  dxc5 {[%clk 0:01:50]} 20. bxc5 {[%clk 0:01:04]}  Ba4 {[%clk 0:01:47]} 21. Nb3 {[%clk 0:00:55]}  Rc8 {[%clk 0:01:41]} 22. Qxf6 {[%clk 0:00:39]}  Rxf6 {[%clk 0:01:41]} 23. Rd6 {[%clk 0:00:40]}  Kf7 {[%clk 0:01:36]} 24. Rhd1 {[%clk 0:00:36]}  Bxb3 {[%clk 0:01:35]} 25. Kxb3 {[%clk 0:00:37]}  Rxc5 {[%clk 0:01:35]} 26. Rxf6+ {[%clk 0:00:37]}  Kxf6 {[%clk 0:01:35]} 27. Rd7 {[%clk 0:00:34]}  Nc6 {[%clk 0:00:31]} 28. Rxh7 {[%clk 0:00:33]}  b6 {[%clk 0:00:30]} 29. h5 {[%clk 0:00:25]}  gxh5 {[%clk 0:00:30]} 30. Rxh5 {[%clk 0:00:25]}  Ne5 {[%clk 0:00:28]} 31. Rh7 {[%clk 0:00:21]}  a5 {[%clk 0:00:23]} 32. Rh6+ {[%clk 0:00:20]}  Kg5 {[%clk 0:00:19]} 33. Rxb6 {[%clk 0:00:18]}  Rc8 {[%clk 0:00:20]} 34. Rb5 {[%clk 0:00:18]}  Kf6 {[%clk 0:00:19]} 35. Rb6+ {[%clk 0:00:17]}  Kg5 {[%clk 0:00:19]} 36. Rb5 {[%clk 0:00:18]}  Kf6 {[%clk 0:00:19]} 37. c5 {[%clk 0:00:18]}  Rd8 {[%clk 0:00:18]} 38. Kc3 {[%clk 0:00:06]}  Ng4 {[%clk 0:00:18]} 39. Bxg4 {[%clk 0:00:04]}  fxg4 {[%clk 0:00:19]} 40. c6 {[%clk 0:00:05]}  Ke6 {[%clk 0:00:16]} 41. c7 {[%clk 0:00:05]}  Rd3+ {[%clk 0:00:14]} 42. Kc2 {[%clk 0:00:04]}  Kd7 {[%clk 0:00:14]} 43. Rc5 {[%clk 0:00:05]}  Kc8 {[%clk 0:00:14]} 44. Rc4 {[%clk 0:00:06]}  Rxa3 {[%clk 0:00:14]} 45. Rxe4 {[%clk 0:00:06]}  Ra2+ {[%clk 0:00:14]} 46. Kb3 {[%clk 0:00:07]}  Rxf2 {[%clk 0:00:15]} 47. Rxg4 {[%clk 0:00:08]}  Kxc7 {[%clk 0:00:15]} 48. Rg5 {[%clk 0:00:08]}  Kb6 {[%clk 0:00:15]} 49. Rg6+ {[%clk 0:00:07]}  Kb5 {[%clk 0:00:15]} 50. Rg5+ {[%clk 0:00:08]}  Kb6 {[%clk 0:00:15]} 51. Rg6+ {[%clk 0:00:08]}  Kb5 {[%clk 0:00:16]} 52. Rg5+ {[%clk 0:00:09]}  Kb6 {[%clk 0:00:17]} 1/2-1/2


[Site "https://www.chess.com"]

[Event "Titled Tuesday Blitz August 22 Late 2023"]
[White "Zarubitski, Viachaslau"]
[Black "Osmonbekov, Talaibek"]
[WhiteFideId "13509373"]
[BlackFideId "2017253"]
[WhiteElo "2617"]
[BlackElo "2206"]
[Result "1-0"]
[Round "4"]
[TimeControl "180+1"]
[Date "2023.08.22"]
[WhiteClock "0:00:13"]
[BlackClock "0:00:00"]
[Board "99"]

1. e4 {[%clk 0:03:00]}  c5 {[%clk 0:02:58]} 2. Nf3 {[%clk 0:03:00]}  d6 {[%clk 0:02:59]} 3. c3 {[%clk 0:02:59]}  Nf6 {[%clk 0:02:58]} 4. h3 {[%clk 0:03:00]}  Nc6 {[%clk 0:02:57]} 5. Bd3 {[%clk 0:03:00]}  e6 {[%clk 0:02:54]} 6. Bc2 {[%clk 0:03:00]}  Be7 {[%clk 0:02:54]} 7. d4 {[%clk 0:02:59]}  cxd4 {[%clk 0:02:53]} 8. cxd4 {[%clk 0:02:59]}  O-O {[%clk 0:02:52]} 9. Nc3 {[%clk 0:02:59]}  Bd7 {[%clk 0:02:47]} 10. O-O {[%clk 0:02:59]}  Rc8 {[%clk 0:02:47]} 11. Bf4 {[%clk 0:02:52]}  Be8 {[%clk 0:02:21]} 12. Rc1 {[%clk 0:02:46]}  a6 {[%clk 0:02:20]} 13. Bb1 {[%clk 0:02:45]}  b5 {[%clk 0:02:20]} 14. a3 {[%clk 0:02:42]}  Na5 {[%clk 0:02:16]} 15. Qe2 {[%clk 0:02:35]}  Nc4 {[%clk 0:02:07]} 16. Rfd1 {[%clk 0:02:28]}  a5 {[%clk 0:01:56]} 17. e5 {[%clk 0:02:18]}  Nd5 {[%clk 0:01:55]} 18. Nxd5 {[%clk 0:02:13]}  exd5 {[%clk 0:01:54]} 19. e6 {[%clk 0:02:11]}  fxe6 {[%clk 0:01:23]} 20. Qxe6+ {[%clk 0:02:11]}  Kh8 {[%clk 0:01:21]} 21. Bg3 {[%clk 0:02:02]}  Bf7 {[%clk 0:00:54]} 22. Qe2 {[%clk 0:02:01]}  Bh5 {[%clk 0:00:53]} 23. b3 {[%clk 0:01:42]}  Bg5 {[%clk 0:00:35]} 24. bxc4 {[%clk 0:01:21]}  Bxc1 {[%clk 0:00:33]} 25. Rxc1 {[%clk 0:01:22]}  dxc4 {[%clk 0:00:34]} 26. Qb2 {[%clk 0:00:45]}  Qd7 {[%clk 0:00:30]} 27. Ng5 {[%clk 0:00:26]}  h6 {[%clk 0:00:30]} 28. Ne4 {[%clk 0:00:26]}  d5 {[%clk 0:00:20]} 29. Nd6 {[%clk 0:00:24]}  Rb8 {[%clk 0:00:19]} 30. Qc2 {[%clk 0:00:24]}  g5 {[%clk 0:00:18]} 31. Be5+ {[%clk 0:00:23]}  Kg8 {[%clk 0:00:17]} 32. Nf5 {[%clk 0:00:22]}  Rb6 {[%clk 0:00:14]} 33. g4 {[%clk 0:00:17]}  Bg6 {[%clk 0:00:15]} 34. Nxh6+ {[%clk 0:00:15]}  Kh7 {[%clk 0:00:15]} 35. Nf5 {[%clk 0:00:16]}  b4 {[%clk 0:00:13]} 36. axb4 {[%clk 0:00:15]}  axb4 {[%clk 0:00:14]} 37. Qd2 {[%clk 0:00:16]}  c3 {[%clk 0:00:14]} 38. Qxg5 {[%clk 0:00:16]}  Bxf5 {[%clk 0:00:13]} 39. gxf5 {[%clk 0:00:12]}  Rg8 {[%clk 0:00:13]} 40. f6+ {[%clk 0:00:13]}  c2 {[%clk 0:00:04]} 41. Bxc2+ {[%clk 0:00:13]}  Kh8 {[%clk 0:00:00]} 42. f7+ {[%clk 0:00:13]} 1-0


[Site "https://www.chess.com"]

[Event "Titled Tuesday Blitz August 22 Late 2023"]
[White "Santos, Marcus Vinicius Moreira"]
[Black "Koziorowicz, Michal"]
[WhiteFideId "2103125"]
[BlackFideId "21809194"]
[WhiteElo "2433"]
[BlackElo "2681"]
[Result "1-0"]
[Round "4"]
[TimeControl "180+1"]
[Date "2023.08.22"]
[WhiteClock "0:00:21"]
[BlackClock "0:00:08"]
[Board "102"]

1. e4 {[%clk 0:03:00]}  c5 {[%clk 0:02:59]} 2. Nf3 {[%clk 0:03:00]}  Nc6 {[%clk 0:03:00]} 3. Bc4 {[%clk 0:02:59]}  e6 {[%clk 0:02:57]} 4. O-O {[%clk 0:02:58]}  a6 {[%clk 0:02:58]} 5. d4 {[%clk 0:02:56]}  b5 {[%clk 0:02:55]} 6. Be2 {[%clk 0:02:52]}  cxd4 {[%clk 0:02:55]} 7. Nxd4 {[%clk 0:02:53]}  Bb7 {[%clk 0:02:52]} 8. b3 {[%clk 0:02:33]}  Nf6 {[%clk 0:02:51]} 9. Nxc6 {[%clk 0:02:26]}  Bxc6 {[%clk 0:02:50]} 10. e5 {[%clk 0:02:26]}  Nd5 {[%clk 0:02:38]} 11. Bb2 {[%clk 0:02:25]}  Bc5 {[%clk 0:02:31]} 12. Nd2 {[%clk 0:02:17]}  Nf4 {[%clk 0:01:23]} 13. Bf3 {[%clk 0:02:16]}  d5 {[%clk 0:01:23]} 14. exd6 {[%clk 0:02:01]}  Qxd6 {[%clk 0:01:22]} 15. Ne4 {[%clk 0:01:50]}  Bxe4 {[%clk 0:01:20]} 16. Bxe4 {[%clk 0:01:27]}  Rd8 {[%clk 0:01:14]} 17. Qxd6 {[%clk 0:01:24]}  Bxd6 {[%clk 0:01:02]} 18. Bxg7 {[%clk 0:01:09]}  Rg8 {[%clk 0:01:01]} 19. Bf6 {[%clk 0:01:09]}  Rc8 {[%clk 0:00:46]} 20. g3 {[%clk 0:01:03]}  Bc5 {[%clk 0:00:40]} 21. Bxh7 {[%clk 0:00:51]}  Ne2+ {[%clk 0:00:24]} 22. Kh1 {[%clk 0:00:42]}  Kd7 {[%clk 0:00:17]} 23. Bxg8 {[%clk 0:00:41]}  Rxg8 {[%clk 0:00:18]} 24. Rad1+ {[%clk 0:00:35]}  Kc6 {[%clk 0:00:18]} 25. Rfe1 {[%clk 0:00:32]}  Nxg3+ {[%clk 0:00:08]} 26. fxg3 {[%clk 0:00:29]}  Rg6 {[%clk 0:00:08]} 27. Bd4 {[%clk 0:00:29]}  Bd6 {[%clk 0:00:08]} 28. Kg2 {[%clk 0:00:29]}  Rh6 {[%clk 0:00:08]} 29. Be5 {[%clk 0:00:27]}  Bc5 {[%clk 0:00:08]} 30. Bf4 {[%clk 0:00:27]}  Rg6 {[%clk 0:00:09]} 31. h4 {[%clk 0:00:27]}  Rg4 {[%clk 0:00:08]} 32. Kf3 {[%clk 0:00:27]}  Rg6 {[%clk 0:00:09]} 33. h5 {[%clk 0:00:27]}  Rg8 {[%clk 0:00:09]} 34. h6 {[%clk 0:00:27]}  f6 {[%clk 0:00:09]} 35. h7 {[%clk 0:00:27]}  Rh8 {[%clk 0:00:10]} 36. Rh1 {[%clk 0:00:27]}  e5 {[%clk 0:00:10]} 37. Be3 {[%clk 0:00:27]}  Bd6 {[%clk 0:00:09]} 38. c4 {[%clk 0:00:26]}  f5 {[%clk 0:00:09]} 39. Bg5 {[%clk 0:00:24]}  e4+ {[%clk 0:00:09]} 40. Kg2 {[%clk 0:00:25]}  Be5 {[%clk 0:00:08]} 41. Rd5 {[%clk 0:00:24]}  Bg7 {[%clk 0:00:07]} 42. Rxf5 {[%clk 0:00:24]}  Re8 {[%clk 0:00:05]} 43. Bf6 {[%clk 0:00:22]}  Bh8 {[%clk 0:00:06]} 44. Bxh8 {[%clk 0:00:21]}  Rxh8 {[%clk 0:00:07]} 45. Rg5 {[%clk 0:00:22]}  bxc4 {[%clk 0:00:06]} 46. bxc4 {[%clk 0:00:22]}  Kb6 {[%clk 0:00:07]} 47. Rg8 {[%clk 0:00:22]}  Rxh7 {[%clk 0:00:06]} 48. Rxh7 {[%clk 0:00:21]}  Kc5 {[%clk 0:00:07]} 49. Rc8+ {[%clk 0:00:20]}  Kd4 {[%clk 0:00:08]} 50. c5 {[%clk 0:00:21]}  e3 {[%clk 0:00:08]} 51. c6 {[%clk 0:00:21]}  Kc3 {[%clk 0:00:08]} 52. Re7 {[%clk 0:00:21]}  e2 {[%clk 0:00:08]} 53. Rxe2 {[%clk 0:00:21]} 1-0


[Site "https://www.chess.com"]

[Event "Titled Tuesday Blitz August 22 Late 2023"]
[White "Di Berardino, Diego Rafael"]
[Black "Colpe, Malte"]
[WhiteFideId "2105446"]
[BlackFideId "24623075"]
[WhiteElo "2629"]
[BlackElo "2430"]
[Result "1-0"]
[Round "4"]
[TimeControl "180+1"]
[Date "2023.08.22"]
[WhiteClock "0:00:05"]
[BlackClock "0:00:00"]
[Board "103"]

1. d4 {[%clk 0:03:00]}  d5 {[%clk 0:02:56]} 2. c4 {[%clk 0:03:01]}  e6 {[%clk 0:02:54]} 3. Nc3 {[%clk 0:03:01]}  Nf6 {[%clk 0:02:52]} 4. Bg5 {[%clk 0:03:00]}  Be7 {[%clk 0:02:49]} 5. e3 {[%clk 0:03:00]}  Nbd7 {[%clk 0:02:48]} 6. Nf3 {[%clk 0:03:01]}  b6 {[%clk 0:02:48]} 7. cxd5 {[%clk 0:02:54]}  Nxd5 {[%clk 0:02:47]} 8. Bxe7 {[%clk 0:02:52]}  Qxe7 {[%clk 0:02:48]} 9. Nxd5 {[%clk 0:02:48]}  exd5 {[%clk 0:02:48]} 10. Bd3 {[%clk 0:02:48]}  O-O {[%clk 0:02:45]} 11. Qc2 {[%clk 0:02:38]}  Nf6 {[%clk 0:02:19]} 12. O-O {[%clk 0:02:38]}  c5 {[%clk 0:02:19]} 13. dxc5 {[%clk 0:02:28]}  bxc5 {[%clk 0:02:20]} 14. Rac1 {[%clk 0:02:25]}  c4 {[%clk 0:02:16]} 15. Be2 {[%clk 0:02:23]}  Bg4 {[%clk 0:02:12]} 16. h3 {[%clk 0:02:15]}  Bh5 {[%clk 0:02:11]} 17. b3 {[%clk 0:02:14]}  Rac8 {[%clk 0:02:00]} 18. Qb2 {[%clk 0:02:07]}  Qb4 {[%clk 0:01:54]} 19. Nd4 {[%clk 0:01:51]}  c3 {[%clk 0:01:44]} 20. Qc2 {[%clk 0:01:51]}  Bg6 {[%clk 0:01:40]} 21. Bd3 {[%clk 0:01:50]}  Ne4 {[%clk 0:01:38]} 22. Qe2 {[%clk 0:01:35]}  a5 {[%clk 0:01:35]} 23. Rc2 {[%clk 0:01:34]}  a4 {[%clk 0:01:33]} 24. Rfc1 {[%clk 0:01:34]}  axb3 {[%clk 0:01:33]} 25. axb3 {[%clk 0:01:34]}  Rc5 {[%clk 0:01:28]} 26. Qg4 {[%clk 0:01:13]}  Nf6 {[%clk 0:01:13]} 27. Qe2 {[%clk 0:01:10]}  Ne4 {[%clk 0:01:12]} 28. Ra1 {[%clk 0:01:01]}  Rfc8 {[%clk 0:01:08]} 29. Ra4 {[%clk 0:00:58]}  Qb6 {[%clk 0:01:03]} 30. Ra6 {[%clk 0:00:56]}  Qb4 {[%clk 0:00:57]} 31. Qd1 {[%clk 0:00:48]}  Ra5 {[%clk 0:00:56]} 32. Qg4 {[%clk 0:00:30]}  Rb8 {[%clk 0:00:40]} 33. Rc6 {[%clk 0:00:29]}  Qe7 {[%clk 0:00:28]} 34. Rc8+ {[%clk 0:00:24]}  Rxc8 {[%clk 0:00:26]} 35. Qxc8+ {[%clk 0:00:25]}  Qf8 {[%clk 0:00:26]} 36. Qxf8+ {[%clk 0:00:25]}  Kxf8 {[%clk 0:00:27]} 37. Bxe4 {[%clk 0:00:26]}  Bxe4 {[%clk 0:00:21]} 38. Rxc3 {[%clk 0:00:26]}  Ra1+ {[%clk 0:00:19]} 39. Kh2 {[%clk 0:00:26]}  Ra2 {[%clk 0:00:20]} 40. f3 {[%clk 0:00:26]}  Bg6 {[%clk 0:00:17]} 41. b4 {[%clk 0:00:26]}  Rb2 {[%clk 0:00:17]} 42. b5 {[%clk 0:00:26]}  Ke7 {[%clk 0:00:16]} 43. h4 {[%clk 0:00:21]}  h6 {[%clk 0:00:13]} 44. Kg3 {[%clk 0:00:20]}  Kd6 {[%clk 0:00:12]} 45. Kh3 {[%clk 0:00:19]}  Kd7 {[%clk 0:00:11]} 46. g4 {[%clk 0:00:19]}  h5 {[%clk 0:00:11]} 47. Kg3 {[%clk 0:00:17]}  hxg4 {[%clk 0:00:11]} 48. fxg4 {[%clk 0:00:18]}  Be4 {[%clk 0:00:12]} 49. h5 {[%clk 0:00:17]}  Rg2+ {[%clk 0:00:11]} 50. Kh3 {[%clk 0:00:17]}  Rb2 {[%clk 0:00:11]} 51. Ra3 {[%clk 0:00:16]}  Kd6 {[%clk 0:00:10]} 52. Ra7 {[%clk 0:00:13]}  Rf2 {[%clk 0:00:07]} 53. Kg3 {[%clk 0:00:13]}  Rf1 {[%clk 0:00:07]} 54. Kh3 {[%clk 0:00:11]}  Kc5 {[%clk 0:00:07]} 55. Rc7+ {[%clk 0:00:10]}  Kb6 {[%clk 0:00:07]} 56. Rc6+ {[%clk 0:00:10]}  Kb7 {[%clk 0:00:08]} 57. Rd6 {[%clk 0:00:10]}  Re1 {[%clk 0:00:08]} 58. Rd7+ {[%clk 0:00:08]}  Kb6 {[%clk 0:00:09]} 59. Rxf7 {[%clk 0:00:08]}  Rxe3+ {[%clk 0:00:09]} 60. Kh4 {[%clk 0:00:09]}  Rd3 {[%clk 0:00:09]} 61. Ne6 {[%clk 0:00:09]}  Kxb5 {[%clk 0:00:07]} 62. Rxg7 {[%clk 0:00:09]}  Rd1 {[%clk 0:00:07]} 63. Rd7 {[%clk 0:00:08]}  Kc6 {[%clk 0:00:06]} 64. Rd8 {[%clk 0:00:08]}  Rh1+ {[%clk 0:00:07]} 65. Kg5 {[%clk 0:00:09]}  Bf3 {[%clk 0:00:04]} 66. Nd4+ {[%clk 0:00:08]}  Kc7 {[%clk 0:00:05]} 67. Ne6+ {[%clk 0:00:07]}  Kc6 {[%clk 0:00:05]} 68. Rf8 {[%clk 0:00:08]}  Be4 {[%clk 0:00:05]} 69. h6 {[%clk 0:00:07]}  Kd6 {[%clk 0:00:06]} 70. Nd4 {[%clk 0:00:06]}  Ke5 {[%clk 0:00:07]} 71. Nf5 {[%clk 0:00:07]}  Bxf5 {[%clk 0:00:04]} 72. Rxf5+ {[%clk 0:00:07]}  Ke4 {[%clk 0:00:05]} 73. Kg6 {[%clk 0:00:06]}  d4 {[%clk 0:00:05]} 74. Rf8 {[%clk 0:00:03]}  d3 {[%clk 0:00:05]} 75. h7 {[%clk 0:00:04]}  d2 {[%clk 0:00:05]} 76. Rd8 {[%clk 0:00:04]}  Ke3 {[%clk 0:00:00]} 77. Kg7 {[%clk 0:00:05]} 1-0


[Site "https://www.chess.com"]

[Event "Titled Tuesday Blitz August 22 Late 2023"]
[White "Leebit02"]
[Black "Senft, Sean"]
[BlackFideId "2044960"]
[WhiteElo "2564"]
[BlackElo "2348"]
[Result "1/2-1/2"]
[Round "4"]
[TimeControl "180+1"]
[Date "2023.08.22"]
[WhiteClock "0:00:19"]
[BlackClock "0:00:04"]
[Board "110"]

1. e4 {[%clk 0:02:57]}  c5 {[%clk 0:02:59]} 2. Nf3 {[%clk 0:02:55]}  d6 {[%clk 0:03:00]} 3. d4 {[%clk 0:02:52]}  cxd4 {[%clk 0:03:00]} 4. Nxd4 {[%clk 0:02:50]}  Nf6 {[%clk 0:03:01]} 5. Nc3 {[%clk 0:02:51]}  a6 {[%clk 0:03:02]} 6. Be3 {[%clk 0:02:49]}  e5 {[%clk 0:03:02]} 7. Nb3 {[%clk 0:02:49]}  Be6 {[%clk 0:03:02]} 8. f3 {[%clk 0:02:49]}  Be7 {[%clk 0:03:02]} 9. Qd2 {[%clk 0:02:42]}  O-O {[%clk 0:03:00]} 10. O-O-O {[%clk 0:02:40]}  Nbd7 {[%clk 0:02:56]} 11. g4 {[%clk 0:02:40]}  b5 {[%clk 0:02:53]} 12. g5 {[%clk 0:02:40]}  b4 {[%clk 0:02:53]} 13. Ne2 {[%clk 0:02:22]}  Nh5 {[%clk 0:02:51]} 14. Ng3 {[%clk 0:02:18]}  Nf4 {[%clk 0:02:37]} 15. h4 {[%clk 0:02:07]}  a5 {[%clk 0:02:35]} 16. Kb1 {[%clk 0:01:59]}  a4 {[%clk 0:02:26]} 17. Nc1 {[%clk 0:01:59]}  Qc7 {[%clk 0:01:38]} 18. Nf5 {[%clk 0:01:46]}  Bxf5 {[%clk 0:01:28]} 19. exf5 {[%clk 0:01:47]}  Rfc8 {[%clk 0:01:18]} 20. Rg1 {[%clk 0:01:30]}  Nb6 {[%clk 0:01:06]} 21. f6 {[%clk 0:01:27]}  Bf8 {[%clk 0:01:05]} 22. Bxf4 {[%clk 0:01:11]}  exf4 {[%clk 0:01:04]} 23. h5 {[%clk 0:01:10]}  Nc4 {[%clk 0:00:49]} 24. Bxc4 {[%clk 0:01:07]}  Qxc4 {[%clk 0:00:50]} 25. Rg4 {[%clk 0:00:54]}  b3 {[%clk 0:00:40]} 26. cxb3 {[%clk 0:00:46]}  axb3 {[%clk 0:00:41]} 27. Nxb3 {[%clk 0:00:46]}  Qa4 {[%clk 0:00:27]} 28. Nc1 {[%clk 0:00:44]}  Rxc1+ {[%clk 0:00:22]} 29. Rxc1 {[%clk 0:00:42]}  Qxa2+ {[%clk 0:00:22]} 30. Kc2 {[%clk 0:00:43]}  Qa4+ {[%clk 0:00:14]} 31. Kd3 {[%clk 0:00:36]}  Qb5+ {[%clk 0:00:11]} 32. Kc2 {[%clk 0:00:33]}  Qa4+ {[%clk 0:00:06]} 33. Kd3 {[%clk 0:00:19]}  Qb5+ {[%clk 0:00:04]} 34. Kc2 {[%clk 0:00:19]}  Qa4+ {[%clk 0:00:04]} 1/2-1/2


[Site "https://www.chess.com"]